[Event "Titled Tuesday Blitz July 11 Early 2023"]
[White "Mazurkiewicz, Michal"]
[Black "Kumsiashvili, Nikoloz"]
[WhiteFideId "1124943"]
[BlackFideId "13600621"]
[WhiteElo "2426"]
[BlackElo "2718"]
[Result "0-1"]
[Round "1"]
[TimeControl "180+2"]
[Date "2023.07.11"]
[WhiteClock "0:00:00"]
[BlackClock "0:00:39"]
[Board "77"]

1. e4 {[%clk 0:02:59]}  c5 {[%clk 0:02:58]} 2. Nf3 {[%clk 0:03:00]}  e6 {[%clk 0:02:59]} 3. d3 {[%clk 0:03:00]}  Nc6 {[%clk 0:02:58]} 4. g3 {[%clk 0:03:00]}  g6 {[%clk 0:02:56]} 5. Bg2 {[%clk 0:03:00]}  Bg7 {[%clk 0:02:56]} 6. O-O {[%clk 0:03:00]}  Nge7 {[%clk 0:02:57]} 7. Re1 {[%clk 0:03:01]}  d6 {[%clk 0:02:57]} 8. c3 {[%clk 0:03:01]}  O-O {[%clk 0:02:49]} 9. d4 {[%clk 0:03:01]}  cxd4 {[%clk 0:02:49]} 10. cxd4 {[%clk 0:03:02]}  e5 {[%clk 0:02:45]} 11. d5 {[%clk 0:03:02]}  Nd4 {[%clk 0:02:44]} 12. Nxd4 {[%clk 0:03:02]}  exd4 {[%clk 0:02:44]} 13. Nd2 {[%clk 0:03:03]}  f5 {[%clk 0:02:41]} 14. Nb3 {[%clk 0:03:01]}  fxe4 {[%clk 0:02:40]} 15. Bxe4 {[%clk 0:02:48]}  Qb6 {[%clk 0:02:30]} 16. Bd2 {[%clk 0:02:04]}  a5 {[%clk 0:02:17]} 17. a4 {[%clk 0:02:00]}  Bh3 {[%clk 0:02:10]} 18. Bd3 {[%clk 0:01:51]}  Kh8 {[%clk 0:02:06]} 19. Rxe7 {[%clk 0:01:50]}  Rae8 {[%clk 0:01:53]} 20. Rxg7 {[%clk 0:01:41]}  Kxg7 {[%clk 0:01:52]} 21. Nxd4 {[%clk 0:01:41]}  Rxf2 {[%clk 0:01:45]} 22. Bc3 {[%clk 0:01:01]}  Rf7 {[%clk 0:01:39]} 23. Kh1 {[%clk 0:00:58]}  Kg8 {[%clk 0:01:36]} 24. Qc2 {[%clk 0:00:47]}  Qc5 {[%clk 0:01:27]} 25. Qb3 {[%clk 0:00:19]}  Re3 {[%clk 0:01:18]} 26. Bc4 {[%clk 0:00:18]}  Rc7 {[%clk 0:01:06]} 27. Bf1 {[%clk 0:00:13]}  Bxf1 {[%clk 0:01:00]} 28. Rxf1 {[%clk 0:00:14]}  Qxd4 {[%clk 0:00:58]} 29. Qb5 {[%clk 0:00:10]}  Qe4+ {[%clk 0:00:56]} 30. Kg1 {[%clk 0:00:08]}  Re2 {[%clk 0:00:52]} 31. Rf2 {[%clk 0:00:03]}  Rxf2 {[%clk 0:00:52]} 32. Kxf2 {[%clk 0:00:04]}  Rf7+ {[%clk 0:00:52]} 33. Kg1 {[%clk 0:00:03]}  Qb1+ {[%clk 0:00:51]} 34. Kg2 {[%clk 0:00:01]}  Qe4+ {[%clk 0:00:51]} 35. Kg1 {[%clk 0:00:00]}  h5 {[%clk 0:00:39]} 0-1


[Site "https://www.chess.com"]

[Event "Titled Tuesday Blitz July 11 Early 2023"]
[White "Pein, Jonathan"]
[Black "Timmermans, Mark"]
[WhiteFideId "417092"]
[BlackFideId "1026399"]
[WhiteElo "2423"]
[BlackElo "2710"]
[Result "1-0"]
[Round "1"]
[TimeControl "180+2"]
[Date "2023.07.11"]
[WhiteClock "0:00:07"]
[BlackClock "0:01:33"]
[Board "79"]

1. e4 {[%clk 0:02:59]}  e5 {[%clk 0:03:00]} 2. Nf3 {[%clk 0:02:56]}  Nc6 {[%clk 0:03:00]} 3. Nc3 {[%clk 0:02:56]}  Nf6 {[%clk 0:03:00]} 4. g3 {[%clk 0:02:56]}  d5 {[%clk 0:03:00]} 5. exd5 {[%clk 0:02:57]}  Nxd5 {[%clk 0:03:01]} 6. Bg2 {[%clk 0:02:58]}  Nxc3 {[%clk 0:03:01]} 7. bxc3 {[%clk 0:02:59]}  Bd6 {[%clk 0:03:02]} 8. O-O {[%clk 0:02:59]}  O-O {[%clk 0:03:03]} 9. Rb1 {[%clk 0:02:59]}  Rb8 {[%clk 0:03:03]} 10. Re1 {[%clk 0:02:58]}  Bg4 {[%clk 0:03:03]} 11. h3 {[%clk 0:02:58]}  Bh5 {[%clk 0:03:03]} 12. d4 {[%clk 0:02:58]}  Re8 {[%clk 0:02:59]} 13. g4 {[%clk 0:02:36]}  Bg6 {[%clk 0:02:58]} 14. dxe5 {[%clk 0:02:34]}  Nxe5 {[%clk 0:02:59]} 15. Nxe5 {[%clk 0:02:32]}  Rxe5 {[%clk 0:02:59]} 16. Rxe5 {[%clk 0:02:27]}  Bxe5 {[%clk 0:02:59]} 17. Qxd8+ {[%clk 0:02:27]}  Rxd8 {[%clk 0:03:00]} 18. f4 {[%clk 0:01:41]}  Bxc2 {[%clk 0:03:00]} 19. Rxb7 {[%clk 0:01:26]}  Bd6 {[%clk 0:02:49]} 20. Be3 {[%clk 0:01:19]}  a5 {[%clk 0:02:49]} 21. c4 {[%clk 0:01:09]}  Re8 {[%clk 0:02:41]} 22. Kf2 {[%clk 0:01:08]}  g5 {[%clk 0:02:23]} 23. fxg5 {[%clk 0:00:48]}  Bg3+ {[%clk 0:02:23]} 24. Kxg3 {[%clk 0:00:41]}  Rxe3+ {[%clk 0:02:23]} 25. Kf2 {[%clk 0:00:39]}  Ra3 {[%clk 0:02:23]} 26. Rxc7 {[%clk 0:00:33]}  Rxa2 {[%clk 0:02:23]} 27. Ke3 {[%clk 0:00:23]}  Bg6 {[%clk 0:02:12]} 28. Bd5 {[%clk 0:00:15]}  Ra3+ {[%clk 0:02:12]} 29. Kf4 {[%clk 0:00:15]}  Rxh3 {[%clk 0:02:13]} 30. Ke5 {[%clk 0:00:15]}  Kg7 {[%clk 0:01:56]} 31. c5 {[%clk 0:00:15]}  a4 {[%clk 0:01:52]} 32. c6 {[%clk 0:00:14]}  a3 {[%clk 0:01:52]} 33. Ra7 {[%clk 0:00:14]}  Rc3 {[%clk 0:01:52]} 34. Kd4 {[%clk 0:00:13]}  Rd3+ {[%clk 0:01:50]} 35. Kc5 {[%clk 0:00:12]}  a2 {[%clk 0:01:43]} 36. Rxa2 {[%clk 0:00:09]}  Rc3+ {[%clk 0:01:44]} 37. Kd6 {[%clk 0:00:08]}  h6 {[%clk 0:01:44]} 38. gxh6+ {[%clk 0:00:08]}  Kxh6 {[%clk 0:01:45]} 39. Ra7 {[%clk 0:00:08]}  Kg5 {[%clk 0:01:44]} 40. c7 {[%clk 0:00:08]}  Kxg4 {[%clk 0:01:42]} 41. Ra4+ {[%clk 0:00:08]}  Kg5 {[%clk 0:01:39]} 42. Rc4 {[%clk 0:00:06]}  Rxc4 {[%clk 0:01:36]} 43. Bxc4 {[%clk 0:00:07]}  Bf5 {[%clk 0:01:36]} 44. Bxf7 {[%clk 0:00:07]}  Kf6 {[%clk 0:01:36]} 45. Be8 {[%clk 0:00:08]}  Bc8 {[%clk 0:01:36]} 46. Bd7 {[%clk 0:00:08]}  Ba6 {[%clk 0:01:37]} 47. Kc6 {[%clk 0:00:08]}  Ke7 {[%clk 0:01:37]} 48. Bh3 {[%clk 0:00:08]}  Ke8 {[%clk 0:01:33]} 49. Kb6 {[%clk 0:00:07]} 1-0


[Site "https://www.chess.com"]

[Event "Titled Tuesday Blitz July 11 Early 2023"]
[White "djokovic74"]
[Black "KorolDimitriy75"]
[WhiteElo "2708"]
[BlackElo "2420"]
[Result "0-1"]
[Round "1"]
[TimeControl "180+2"]
[Date "2023.07.11"]
[WhiteClock "0:00:17"]
[BlackClock "0:00:06"]
[Board "82"]

1. e4 {[%clk 0:03:00]}  c5 {[%clk 0:02:59]} 2. Nf3 {[%clk 0:03:00]}  d6 {[%clk 0:02:59]} 3. d4 {[%clk 0:03:01]}  cxd4 {[%clk 0:03:00]} 4. Nxd4 {[%clk 0:03:01]}  Nf6 {[%clk 0:03:00]} 5. Nc3 {[%clk 0:03:02]}  g6 {[%clk 0:03:01]} 6. Be3 {[%clk 0:03:00]}  Bg7 {[%clk 0:03:01]} 7. f3 {[%clk 0:03:01]}  O-O {[%clk 0:03:01]} 8. Qd2 {[%clk 0:03:01]}  Nc6 {[%clk 0:03:02]} 9. O-O-O {[%clk 0:03:02]}  d5 {[%clk 0:03:02]} 10. Qe1 {[%clk 0:03:02]}  e5 {[%clk 0:03:02]} 11. Nxc6 {[%clk 0:03:02]}  bxc6 {[%clk 0:03:03]} 12. exd5 {[%clk 0:03:02]}  cxd5 {[%clk 0:03:03]} 13. Bc4 {[%clk 0:02:51]}  d4 {[%clk 0:02:52]} 14. Bg5 {[%clk 0:02:26]}  Qc7 {[%clk 0:02:29]} 15. Nd5 {[%clk 0:02:07]}  Nxd5 {[%clk 0:02:02]} 16. Bxd5 {[%clk 0:02:07]}  Rb8 {[%clk 0:01:49]} 17. Bb3 {[%clk 0:01:40]}  Qb6 {[%clk 0:01:40]} 18. g4 {[%clk 0:01:34]}  a5 {[%clk 0:01:36]} 19. a4 {[%clk 0:01:33]}  Be6 {[%clk 0:01:35]} 20. Rd3 {[%clk 0:01:31]}  Rfc8 {[%clk 0:01:24]} 21. Kb1 {[%clk 0:01:31]}  Rxc2 {[%clk 0:00:55]} 22. Kxc2 {[%clk 0:01:22]}  Bxb3+ {[%clk 0:00:54]} 23. Kd2 {[%clk 0:01:20]}  Bc4 {[%clk 0:00:48]} 24. Qc1 {[%clk 0:01:08]}  Qb4+ {[%clk 0:00:26]} 25. Ke2 {[%clk 0:01:03]}  Qxb2+ {[%clk 0:00:20]} 26. Bd2 {[%clk 0:01:03]}  Qb3 {[%clk 0:00:09]} 27. Bc3 {[%clk 0:00:38]}  Qxc3 {[%clk 0:00:09]} 28. Qxc3 {[%clk 0:00:38]}  dxc3 {[%clk 0:00:10]} 29. Ke3 {[%clk 0:00:37]}  Bh6+ {[%clk 0:00:08]} 30. Ke4 {[%clk 0:00:37]}  Bxd3+ {[%clk 0:00:08]} 31. Kxd3 {[%clk 0:00:37]}  Bd2 {[%clk 0:00:07]} 32. h4 {[%clk 0:00:33]}  Rb4 {[%clk 0:00:07]} 33. h5 {[%clk 0:00:33]}  Rxa4 {[%clk 0:00:07]} 34. hxg6 {[%clk 0:00:33]}  hxg6 {[%clk 0:00:06]} 35. Rb1 {[%clk 0:00:33]}  Rb4 {[%clk 0:00:06]} 36. Ra1 {[%clk 0:00:34]}  a4 {[%clk 0:00:06]} 37. Ra3 {[%clk 0:00:34]}  Kg7 {[%clk 0:00:06]} 38. Ra1 {[%clk 0:00:34]}  f5 {[%clk 0:00:06]} 39. gxf5 {[%clk 0:00:35]}  gxf5 {[%clk 0:00:07]} 40. Rg1+ {[%clk 0:00:35]}  Kf6 {[%clk 0:00:07]} 41. Kc2 {[%clk 0:00:36]}  e4 {[%clk 0:00:07]} 42. fxe4 {[%clk 0:00:36]}  fxe4 {[%clk 0:00:07]} 43. Rg8 {[%clk 0:00:36]}  Rb2+ {[%clk 0:00:05]} 44. Kd1 {[%clk 0:00:37]}  Bf4 {[%clk 0:00:05]} 45. Rf8+ {[%clk 0:00:28]}  Ke5 {[%clk 0:00:05]} 46. Re8+ {[%clk 0:00:29]}  Kf5 {[%clk 0:00:05]} 47. Rf8+ {[%clk 0:00:29]}  Kg4 {[%clk 0:00:06]} 48. Rg8+ {[%clk 0:00:17]}  Kf3 {[%clk 0:00:06]} 49. Rc8 {[%clk 0:00:17]}  c2+ {[%clk 0:00:06]} 50. Rxc2 {[%clk 0:00:17]}  Rxc2 {[%clk 0:00:06]} 51. Kxc2 {[%clk 0:00:16]}  e3 {[%clk 0:00:06]} 52. Kc3 {[%clk 0:00:17]} 0-1


[Site "https://www.chess.com"]

[Event "Titled Tuesday Blitz July 11 Early 2023"]
[White "Estrada Nieto, Julian"]
[Black "Jaracz, Pawel"]
[WhiteFideId "5101018"]
[BlackFideId "1102222"]
[WhiteElo "2415"]
[BlackElo "2702"]
[Result "0-1"]
[Round "1"]
[TimeControl "180+2"]
[Date "2023.07.11"]
[WhiteClock "0:00:30"]
[BlackClock "0:00:52"]
[Board "87"]

1. e4 {[%clk 0:02:57]}  d6 {[%clk 0:02:57]} 2. d4 {[%clk 0:02:56]}  Nf6 {[%clk 0:02:57]} 3. Nc3 {[%clk 0:02:56]}  e5 {[%clk 0:02:57]} 4. Nf3 {[%clk 0:02:56]}  Nbd7 {[%clk 0:02:57]} 5. Bc4 {[%clk 0:02:56]}  Be7 {[%clk 0:02:57]} 6. O-O {[%clk 0:02:57]}  O-O {[%clk 0:02:57]} 7. Re1 {[%clk 0:02:57]}  c6 {[%clk 0:02:57]} 8. a4 {[%clk 0:02:58]}  h6 {[%clk 0:02:57]} 9. b3 {[%clk 0:02:47]}  Re8 {[%clk 0:02:44]} 10. Bb2 {[%clk 0:02:46]}  Qc7 {[%clk 0:02:38]} 11. Bd3 {[%clk 0:02:44]}  b6 {[%clk 0:02:37]} 12. Ne2 {[%clk 0:02:41]}  exd4 {[%clk 0:02:33]} 13. Nexd4 {[%clk 0:02:40]}  Nc5 {[%clk 0:02:31]} 14. Nf5 {[%clk 0:02:24]}  Bxf5 {[%clk 0:02:30]} 15. exf5 {[%clk 0:02:24]}  d5 {[%clk 0:02:30]} 16. Be5 {[%clk 0:02:19]}  Qb7 {[%clk 0:02:22]} 17. h3 {[%clk 0:02:03]}  Ncd7 {[%clk 0:02:22]} 18. Bb2 {[%clk 0:02:01]}  Bb4 {[%clk 0:02:21]} 19. c3 {[%clk 0:01:48]}  Bd6 {[%clk 0:02:19]} 20. Nh2 {[%clk 0:01:46]}  Rxe1+ {[%clk 0:02:14]} 21. Qxe1 {[%clk 0:01:46]}  Re8 {[%clk 0:02:13]} 22. Qd1 {[%clk 0:01:46]}  Nc5 {[%clk 0:02:12]} 23. Bc2 {[%clk 0:01:45]}  Be5 {[%clk 0:02:10]} 24. Ng4 {[%clk 0:01:42]}  Nxg4 {[%clk 0:02:10]} 25. Qxg4 {[%clk 0:01:43]}  Qe7 {[%clk 0:02:09]} 26. g3 {[%clk 0:01:25]}  Qf6 {[%clk 0:02:07]} 27. Qf3 {[%clk 0:01:23]}  d4 {[%clk 0:01:40]} 28. Re1 {[%clk 0:01:16]}  Rd8 {[%clk 0:01:35]} 29. Rxe5 {[%clk 0:01:12]}  Qxe5 {[%clk 0:01:35]} 30. cxd4 {[%clk 0:01:13]}  Qf6 {[%clk 0:01:15]} 31. Bc3 {[%clk 0:00:59]}  Nd7 {[%clk 0:00:56]} 32. d5 {[%clk 0:00:58]}  Ne5 {[%clk 0:00:56]} 33. Bxe5 {[%clk 0:00:48]}  Qxe5 {[%clk 0:00:55]} 34. dxc6 {[%clk 0:00:48]}  Qc5 {[%clk 0:00:55]} 35. Bd3 {[%clk 0:00:39]}  Qc3 {[%clk 0:00:53]} 36. Ba6 {[%clk 0:00:30]}  Qxf3 {[%clk 0:00:52]} 0-1


[Site "https://www.chess.com"]

[Event "Titled Tuesday Blitz July 11 Early 2023"]
[White "Petrosian, Karlen"]
[Black "Tanmay Jain"]
[WhiteFideId "4176146"]
[BlackFideId "45015481"]
[WhiteElo "2700"]
[BlackElo "2413"]
[Result "1-0"]
[Round "1"]
[TimeControl "180+2"]
[Date "2023.07.11"]
[WhiteClock "0:01:17"]
[BlackClock "0:00:27"]
[Board "88"]

1. e4 {[%clk 0:02:59]}  c5 {[%clk 0:02:59]} 2. c3 {[%clk 0:02:59]}  d6 {[%clk 0:02:59]} 3. d4 {[%clk 0:02:59]}  cxd4 {[%clk 0:03:00]} 4. cxd4 {[%clk 0:03:00]}  g6 {[%clk 0:03:00]} 5. Nc3 {[%clk 0:03:01]}  Bg7 {[%clk 0:03:00]} 6. Nf3 {[%clk 0:03:01]}  Nd7 {[%clk 0:03:01]} 7. Be2 {[%clk 0:03:00]}  Ngf6 {[%clk 0:03:01]} 8. O-O {[%clk 0:02:58]}  O-O {[%clk 0:03:01]} 9. h3 {[%clk 0:02:58]}  b6 {[%clk 0:02:56]} 10. e5 {[%clk 0:02:50]}  Ne8 {[%clk 0:02:50]} 11. Bf4 {[%clk 0:02:38]}  Bb7 {[%clk 0:02:46]} 12. Re1 {[%clk 0:02:38]}  d5 {[%clk 0:02:37]} 13. Qd2 {[%clk 0:02:27]}  Nc7 {[%clk 0:02:32]} 14. Bh6 {[%clk 0:02:28]}  Ne6 {[%clk 0:02:29]} 15. Bd3 {[%clk 0:02:24]}  Rc8 {[%clk 0:02:19]} 16. Rad1 {[%clk 0:02:21]}  a6 {[%clk 0:02:14]} 17. h4 {[%clk 0:02:16]}  b5 {[%clk 0:02:11]} 18. h5 {[%clk 0:02:16]}  Nb6 {[%clk 0:02:10]} 19. Bxg7 {[%clk 0:02:16]}  Kxg7 {[%clk 0:02:03]} 20. Ng5 {[%clk 0:02:06]}  Nxg5 {[%clk 0:01:44]} 21. Qxg5 {[%clk 0:02:07]}  f6 {[%clk 0:01:15]} 22. Qg3 {[%clk 0:01:56]}  f5 {[%clk 0:01:10]} 23. Ne2 {[%clk 0:01:56]}  e6 {[%clk 0:01:01]} 24. Nf4 {[%clk 0:01:52]}  Qe8 {[%clk 0:01:01]} 25. hxg6 {[%clk 0:01:48]}  hxg6 {[%clk 0:00:55]} 26. Qg5 {[%clk 0:01:25]}  Nd7 {[%clk 0:00:41]} 27. Re3 {[%clk 0:01:23]}  Rh8 {[%clk 0:00:38]} 28. Rg3 {[%clk 0:01:22]}  Nf8 {[%clk 0:00:34]} 29. Nh5+ {[%clk 0:01:18]}  Kf7 {[%clk 0:00:27]} 30. Qf6+ {[%clk 0:01:17]} 1-0


[Site "https://www.chess.com"]

[Event "Titled Tuesday Blitz July 11 Early 2023"]
[White "Oleksiyenko, Mykhaylo"]
[Black "Glavina, Pablo"]
[WhiteFideId "4152417"]
[BlackFideId "100234"]
[WhiteElo "2690"]
[BlackElo "2409"]
[Result "1-0"]
[Round "1"]
[TimeControl "180+2"]
[Date "2023.07.11"]
[WhiteClock "0:01:59"]
[BlackClock "0:00:30"]
[Board "90"]

1. e4 {[%clk 0:03:00]}  e5 {[%clk 0:02:46]} 2. Nf3 {[%clk 0:03:00]}  Nc6 {[%clk 0:02:33]} 3. Bb5 {[%clk 0:03:00]}  a6 {[%clk 0:02:26]} 4. Bxc6 {[%clk 0:03:00]}  dxc6 {[%clk 0:02:03]} 5. O-O {[%clk 0:03:01]}  Bg4 {[%clk 0:02:03]} 6. h3 {[%clk 0:03:01]}  h5 {[%clk 0:02:03]} 7. d3 {[%clk 0:03:01]}  Qf6 {[%clk 0:02:02]} 8. Nbd2 {[%clk 0:03:01]}  g5 {[%clk 0:02:03]} 9. Nc4 {[%clk 0:02:59]}  Bxf3 {[%clk 0:02:01]} 10. Qxf3 {[%clk 0:03:00]}  Qxf3 {[%clk 0:02:01]} 11. gxf3 {[%clk 0:03:01]}  f6 {[%clk 0:02:00]} 12. Be3 {[%clk 0:02:58]}  O-O-O {[%clk 0:01:59]} 13. Rfd1 {[%clk 0:02:58]}  Ne7 {[%clk 0:01:26]} 14. d4 {[%clk 0:02:57]}  Ng6 {[%clk 0:01:21]} 15. dxe5 {[%clk 0:02:56]}  Nxe5 {[%clk 0:01:13]} 16. Rxd8+ {[%clk 0:02:55]}  Kxd8 {[%clk 0:01:12]} 17. Nxe5 {[%clk 0:02:56]}  fxe5 {[%clk 0:01:12]} 18. Bxg5+ {[%clk 0:02:57]}  Be7 {[%clk 0:01:12]} 19. Rd1+ {[%clk 0:02:53]}  Ke8 {[%clk 0:01:12]} 20. Bxe7 {[%clk 0:02:28]}  Kxe7 {[%clk 0:01:13]} 21. f4 {[%clk 0:02:29]}  exf4 {[%clk 0:01:10]} 22. Kg2 {[%clk 0:02:29]}  Ke6 {[%clk 0:01:06]} 23. Kf3 {[%clk 0:02:29]}  Rf8 {[%clk 0:00:58]} 24. Rd3 {[%clk 0:02:13]}  c5 {[%clk 0:00:56]} 25. Rd5 {[%clk 0:02:09]}  b6 {[%clk 0:00:48]} 26. Rxh5 {[%clk 0:02:08]}  Kd6 {[%clk 0:00:48]} 27. Rd5+ {[%clk 0:02:04]}  Kc6 {[%clk 0:00:47]} 28. h4 {[%clk 0:02:04]}  Rh8 {[%clk 0:00:40]} 29. h5 {[%clk 0:02:03]}  Rf8 {[%clk 0:00:39]} 30. h6 {[%clk 0:02:03]}  Rh8 {[%clk 0:00:38]} 31. Rh5 {[%clk 0:02:02]}  Kd6 {[%clk 0:00:38]} 32. Kxf4 {[%clk 0:02:02]}  Ke6 {[%clk 0:00:38]} 33. h7 {[%clk 0:02:02]}  Kf7 {[%clk 0:00:38]} 34. Kf5 {[%clk 0:02:02]}  Kg7 {[%clk 0:00:38]} 35. e5 {[%clk 0:02:02]}  b5 {[%clk 0:00:35]} 36. e6 {[%clk 0:02:02]}  c6 {[%clk 0:00:35]} 37. Ke5 {[%clk 0:02:02]}  c4 {[%clk 0:00:33]} 38. f4 {[%clk 0:02:01]}  b4 {[%clk 0:00:31]} 39. f5 {[%clk 0:02:01]}  a5 {[%clk 0:00:31]} 40. f6+ {[%clk 0:02:00]}  Kg6 {[%clk 0:00:31]} 41. Rh1 {[%clk 0:02:00]}  a4 {[%clk 0:00:29]} 42. Rg1+ {[%clk 0:02:00]}  Kxh7 {[%clk 0:00:27]} 43. Rh1+ {[%clk 0:02:00]}  Kg8 {[%clk 0:00:28]} 44. f7+ {[%clk 0:02:00]}  Kg7 {[%clk 0:00:28]} 45. Rxh8 {[%clk 0:02:00]}  Kxh8 {[%clk 0:00:28]} 46. f8=Q+ {[%clk 0:02:01]}  Kh7 {[%clk 0:00:29]} 47. Qf6 {[%clk 0:01:59]}  c3 {[%clk 0:00:28]} 48. e7 {[%clk 0:01:59]}  b3 {[%clk 0:00:29]} 49. e8=Q {[%clk 0:01:59]}  c5 {[%clk 0:00:30]} 50. Qeg6# {[%clk 0:01:59]} 1-0


[Site "https://www.chess.com"]

[Event "Titled Tuesday Blitz July 11 Early 2023"]
[White "Tymrakiewicz, Rafal"]
[Black "Shuvalova, Polina"]
[WhiteFideId "1108832"]
[BlackFideId "24171760"]
[WhiteElo "2409"]
[BlackElo "2688"]
[Result "0-1"]
[Round "1"]
[TimeControl "180+2"]
[Date "2023.07.11"]
[WhiteClock "0:00:00"]
[BlackClock "0:00:23"]
[Board "91"]

1. d4 {[%clk 0:02:51]}  Nf6 {[%clk 0:02:59]} 2. Bg5 {[%clk 0:02:50]}  c5 {[%clk 0:02:57]} 3. d5 {[%clk 0:02:49]}  Qb6 {[%clk 0:02:56]} 4. Bc1 {[%clk 0:02:50]}  g6 {[%clk 0:02:55]} 5. Nc3 {[%clk 0:02:49]}  Bg7 {[%clk 0:02:55]} 6. e4 {[%clk 0:02:49]}  O-O {[%clk 0:02:55]} 7. Nf3 {[%clk 0:02:47]}  d6 {[%clk 0:02:53]} 8. h3 {[%clk 0:02:48]}  e6 {[%clk 0:02:52]} 9. Be2 {[%clk 0:02:36]}  exd5 {[%clk 0:02:51]} 10. exd5 {[%clk 0:02:36]}  Re8 {[%clk 0:02:51]} 11. O-O {[%clk 0:02:36]}  Nbd7 {[%clk 0:02:52]} 12. Bf4 {[%clk 0:02:30]}  a6 {[%clk 0:02:47]} 13. Rb1 {[%clk 0:02:26]}  Qc7 {[%clk 0:02:38]} 14. a4 {[%clk 0:02:24]}  b6 {[%clk 0:02:37]} 15. Re1 {[%clk 0:02:19]}  Bb7 {[%clk 0:02:36]} 16. Qd2 {[%clk 0:02:18]}  Ne4 {[%clk 0:02:32]} 17. Nxe4 {[%clk 0:02:18]}  Rxe4 {[%clk 0:02:33]} 18. c4 {[%clk 0:02:02]}  Rae8 {[%clk 0:02:14]} 19. Bd3 {[%clk 0:02:02]}  Rxe1+ {[%clk 0:02:13]} 20. Rxe1 {[%clk 0:02:03]}  Rxe1+ {[%clk 0:02:00]} 21. Qxe1 {[%clk 0:01:42]}  Ne5 {[%clk 0:02:00]} 22. Nxe5 {[%clk 0:01:41]}  Bxe5 {[%clk 0:02:00]} 23. Bxe5 {[%clk 0:01:34]}  dxe5 {[%clk 0:02:01]} 24. g4 {[%clk 0:01:22]}  f6 {[%clk 0:01:58]} 25. b3 {[%clk 0:01:20]}  Kg7 {[%clk 0:01:47]} 26. Qe4 {[%clk 0:01:18]}  Qd6 {[%clk 0:01:42]} 27. h4 {[%clk 0:01:16]}  Bc8 {[%clk 0:01:29]} 28. Qf3 {[%clk 0:00:50]}  Qd7 {[%clk 0:01:05]} 29. g5 {[%clk 0:00:50]}  f5 {[%clk 0:01:03]} 30. Qe2 {[%clk 0:00:44]}  Qd6 {[%clk 0:01:01]} 31. Kg2 {[%clk 0:00:32]}  f4 {[%clk 0:00:58]} 32. Be4 {[%clk 0:00:29]}  a5 {[%clk 0:00:57]} 33. Qf3 {[%clk 0:00:22]}  Bd7 {[%clk 0:00:55]} 34. Kf1 {[%clk 0:00:21]}  h6 {[%clk 0:00:53]} 35. gxh6+ {[%clk 0:00:19]}  Kxh6 {[%clk 0:00:53]} 36. Qg2 {[%clk 0:00:18]}  Qf6 {[%clk 0:00:50]} 37. f3 {[%clk 0:00:17]}  Bf5 {[%clk 0:00:44]} 38. Qc2 {[%clk 0:00:09]}  Bh3+ {[%clk 0:00:31]} 39. Ke2 {[%clk 0:00:04]}  Bd7 {[%clk 0:00:26]} 40. Kd3 {[%clk 0:00:02]}  Qxh4 {[%clk 0:00:26]} 41. Qg2 {[%clk 0:00:02]}  g5 {[%clk 0:00:23]} 42. Kc3 {[%clk 0:00:00]}  g4 {[%clk 0:00:23]} 0-1


[Site "https://www.chess.com"]

[Event "Titled Tuesday Blitz July 11 Early 2023"]
[White "Lavrik, Dmitry"]
[Black "whiteglovethief"]
[WhiteFideId "24113190"]
[WhiteElo "2684"]
[BlackElo "2406"]
[Result "0-1"]
[Round "1"]
[TimeControl "180+2"]
[Date "2023.07.11"]
[WhiteClock "0:00:04"]
[BlackClock "0:00:41"]
[Board "94"]

1. Nf3 {[%clk 0:03:00]}  Nf6 {[%clk 0:02:57]} 2. g3 {[%clk 0:03:01]}  g6 {[%clk 0:02:57]} 3. Bg2 {[%clk 0:03:01]}  Bg7 {[%clk 0:02:58]} 4. O-O {[%clk 0:03:00]}  O-O {[%clk 0:02:59]} 5. c4 {[%clk 0:02:57]}  d6 {[%clk 0:03:00]} 6. Nc3 {[%clk 0:02:56]}  c5 {[%clk 0:02:57]} 7. d4 {[%clk 0:02:52]}  Nc6 {[%clk 0:02:57]} 8. dxc5 {[%clk 0:02:39]}  dxc5 {[%clk 0:02:56]} 9. Be3 {[%clk 0:02:40]}  Qa5 {[%clk 0:02:53]} 10. Qa4 {[%clk 0:02:35]}  Nd7 {[%clk 0:02:48]} 11. Qb5 {[%clk 0:01:59]}  a6 {[%clk 0:02:43]} 12. Qxa5 {[%clk 0:01:50]}  Nxa5 {[%clk 0:02:44]} 13. Nd2 {[%clk 0:01:51]}  Rb8 {[%clk 0:02:43]} 14. Bf4 {[%clk 0:01:18]}  Bxc3 {[%clk 0:02:27]} 15. bxc3 {[%clk 0:01:17]}  e5 {[%clk 0:02:26]} 16. Bh6 {[%clk 0:01:16]}  Rd8 {[%clk 0:02:24]} 17. Bd5 {[%clk 0:01:15]}  Nb6 {[%clk 0:02:16]} 18. e4 {[%clk 0:01:13]}  Be6 {[%clk 0:02:11]} 19. Bg5 {[%clk 0:00:51]}  Rd7 {[%clk 0:02:06]} 20. Rad1 {[%clk 0:00:38]}  Kg7 {[%clk 0:02:05]} 21. Be3 {[%clk 0:00:33]}  Rc8 {[%clk 0:01:59]} 22. Nb3 {[%clk 0:00:16]}  Bh3 {[%clk 0:01:10]} 23. Rfe1 {[%clk 0:00:09]}  Bg4 {[%clk 0:01:03]} 24. Nxc5 {[%clk 0:00:07]}  Bxd1 {[%clk 0:01:02]} 25. Nxd7 {[%clk 0:00:07]}  Nxd7 {[%clk 0:01:02]} 26. Rxd1 {[%clk 0:00:07]}  Nf6 {[%clk 0:00:59]} 27. Rb1 {[%clk 0:00:05]}  Nxc4 {[%clk 0:00:59]} 28. Bxb7 {[%clk 0:00:05]}  Nxe3 {[%clk 0:00:58]} 29. Bxc8 {[%clk 0:00:04]}  Nc4 {[%clk 0:00:56]} 30. Bxa6 {[%clk 0:00:05]}  Nd2 {[%clk 0:00:55]} 31. Rb7 {[%clk 0:00:05]}  Nfxe4 {[%clk 0:00:55]} 32. Bc4 {[%clk 0:00:05]}  Nxc4 {[%clk 0:00:54]} 33. Rb4 {[%clk 0:00:04]}  Ncd2 {[%clk 0:00:43]} 34. a4 {[%clk 0:00:05]}  Nxc3 {[%clk 0:00:42]} 35. Rb5 {[%clk 0:00:04]}  Nxb5 {[%clk 0:00:41]} 0-1


[Site "https://www.chess.com"]